{"text_format":"3","workbook":"xlsx","n_sheets":7,"sheets":["Δευτέρα","Τρίτη","Τετάρτη","Πέμπτη","Παρασκευή","Σάββατο","Κυριακή"],"not_rendered":{"defined_names":24},"read":"whole","date_system":"1900"}

{"sheet":"Δευτέρα","index":0,"n_rows":10,"n_cols":13,"rows_kept":10,"merged":[[1,1,2,1],[1,2,1,10],[1,11,1,12],[2,2,2,10],[2,11,2,12]]}
[null,"ΠΡΟΓΡΑΜΜΑ ΒΑΡΔΙΑΣ"]
[null,"ΔΕΥΤΕΡΑ","Εβδομάδα: ",{"$nulls":8},"ΗΜΕΡΟΜΗΝΙΑ"]
[null,null,"Όνομα τμήματος: ",{"$nulls":8},"ΤΜΗΜΑ"]
[null,"Όνομα υπαλλήλου","7:00 πμ","8:00","9:00 πμ","10:00 πμ","11:00 πμ","12:00 μμ","1:00 μμ","2:00 μμ","3:00 μμ","Ασθενής;","ΣΥΝΟΛΟ"]
[null,"Αντιγόνη Γ","προϊστάμενος","προϊστάμενος","προϊστάμενος","προϊστάμενος","προϊστάμενος","προϊστάμενος","προϊστάμενος","προϊστάμενος","προϊστάμενος",null,{"$f":"IFERROR(COUNTIF(Δευτέρα[[#This Row],[7:00 πμ]:[3:00 μμ]],\"*\"),\"\")","v":9}]
[null,"Αλέξανδρος Κ",null,"ταμίας","ταμίας","ταμίας","ταμίας",{"$nulls":5},{"$f":"IFERROR(COUNTIF(Δευτέρα[[#This Row],[7:00 πμ]:[3:00 μμ]],\"*\"),\"\")","v":4}]
[null,"Λεωνίδας Γ",null,"υποδοχή","υποδοχή","υποδοχή","υποδοχή ","υποδοχή","υποδοχή","υποδοχή",null,null,{"$f":"IFERROR(COUNTIF(Δευτέρα[[#This Row],[7:00 πμ]:[3:00 μμ]],\"*\"),\"\")","v":7}]
[null,"Πέτρος Ν",null,"υποδοχή","υποδοχή","υποδοχή","υποδοχή ","υποδοχή","υποδοχή","υποδοχή",null,null,{"$f":"IFERROR(COUNTIF(Δευτέρα[[#This Row],[7:00 πμ]:[3:00 μμ]],\"*\"),\"\")","v":7}]
[null,"Δήμος Λ",{"$nulls":10},{"$f":"IFERROR(COUNTIF(Δευτέρα[[#This Row],[7:00 πμ]:[3:00 μμ]],\"*\"),\"\")","v":0}]
[null,"Στέλλα Κ",{"$nulls":5},"ταμίας","ταμίας","ταμίας","ταμίας",null,{"$f":"IFERROR(COUNTIF(Δευτέρα[[#This Row],[7:00 πμ]:[3:00 μμ]],\"*\"),\"\")","v":4}]

{"sheet":"Τρίτη","index":1,"n_rows":10,"n_cols":13,"rows_kept":10,"merged":[[1,1,2,1],[1,2,1,10],[1,11,1,12],[2,2,2,10],[2,11,2,12]]}
[null,{"$f":"Τίτλος_ΠΡΟΓΡΑΜΜΑΤΟΣ_ΒΑΡΔΙΑΣ","v":"ΠΡΟΓΡΑΜΜΑ ΒΑΡΔΙΑΣ"}]
[null,"ΤΡΙΤΗ","Εβδομάδα: ",{"$nulls":8},{"$f":"ΗΜΕΡΟΜΗΝΙΑ","v":"ΗΜΕΡΟΜΗΝΙΑ"}]
[null,null,"Όνομα τμήματος: ",{"$nulls":8},{"$f":"ΤΜΗΜΑ","v":"ΤΜΗΜΑ"}]
[null,"Όνομα υπαλλήλου","7:00 πμ","8:00 πμ","9:00 πμ","10:00 πμ","11:00 πμ","12:00 μμ","1:00 μμ","2:00 μμ","3:00 μμ","Ασθενής;","ΣΥΝΟΛΟ"]
[null,"Αντιγόνη Γ","προϊστάμενος","προϊστάμενος","προϊστάμενος","προϊστάμενος","προϊστάμενος","προϊστάμενος","προϊστάμενος","προϊστάμενος","προϊστάμενος",null,{"$f":"IFERROR(COUNTIF(Τρίτη[[#This Row],[7:00 πμ]:[3:00 μμ]],\"*\"),\"\")","v":9}]
[null,"Αλέξανδρος Κ",null,"ταμίας","ταμίας","ταμίας","ταμίας",{"$nulls":5},{"$f":"IFERROR(COUNTIF(Τρίτη[[#This Row],[7:00 πμ]:[3:00 μμ]],\"*\"),\"\")","v":4}]
[null,"Λεωνίδας Γ",null,"υποδοχή","υποδοχή","υποδοχή","υποδοχή ","υποδοχή","υποδοχή","υποδοχή",null,null,{"$f":"IFERROR(COUNTIF(Τρίτη[[#This Row],[7:00 πμ]:[3:00 μμ]],\"*\"),\"\")","v":7}]
[null,"Πέτρος Ν",null,"υποδοχή","υποδοχή","υποδοχή","υποδοχή ","υποδοχή","υποδοχή","υποδοχή",null,null,{"$f":"IFERROR(COUNTIF(Τρίτη[[#This Row],[7:00 πμ]:[3:00 μμ]],\"*\"),\"\")","v":7}]
[null,"Δήμος Λ",{"$nulls":9},"Ασθένεια",{"$f":"IFERROR(COUNTIF(Τρίτη[[#This Row],[7:00 πμ]:[3:00 μμ]],\"*\"),\"\")","v":0}]
[null,"Στέλλα Κ",{"$nulls":5},"ταμίας","ταμίας","ταμίας","ταμίας",null,{"$f":"IFERROR(COUNTIF(Τρίτη[[#This Row],[7:00 πμ]:[3:00 μμ]],\"*\"),\"\")","v":4}]

{"sheet":"Τετάρτη","index":2,"n_rows":10,"n_cols":13,"rows_kept":10,"merged":[[1,1,2,1],[1,2,1,10],[1,11,1,12],[2,2,2,10],[2,11,2,12]]}
[null,{"$f":"Τίτλος_ΠΡΟΓΡΑΜΜΑΤΟΣ_ΒΑΡΔΙΑΣ","v":"ΠΡΟΓΡΑΜΜΑ ΒΑΡΔΙΑΣ"}]
[null,"ΤΕΤΑΡΤΗ","Εβδομάδα: ",{"$nulls":8},{"$f":"ΗΜΕΡΟΜΗΝΙΑ","v":"ΗΜΕΡΟΜΗΝΙΑ"}]
[null,null,"Όνομα τμήματος: ",{"$nulls":8},{"$f":"ΤΜΗΜΑ","v":"ΤΜΗΜΑ"}]
[null,"Όνομα υπαλλήλου","7:00 πμ","8:00 πμ","9:00 πμ","10:00 πμ","11:00 πμ","12:00 μμ","1:00 μμ","2:00 μμ","3:00 μμ","Ασθενής;","ΣΥΝΟΛΟ"]
[null,"Αντιγόνη Γ","προϊστάμενος","προϊστάμενος","προϊστάμενος","προϊστάμενος","προϊστάμενος","προϊστάμενος","προϊστάμενος","προϊστάμενος","προϊστάμενος",null,{"$f":"IFERROR(COUNTIF(Τετάρτη[[#This Row],[7:00 πμ]:[3:00 μμ]],\"*\"),\"\")","v":9}]
[null,"Αλέξανδρος Κ",null,"ταμίας","ταμίας","ταμίας","ταμίας",{"$nulls":5},{"$f":"IFERROR(COUNTIF(Τετάρτη[[#This Row],[7:00 πμ]:[3:00 μμ]],\"*\"),\"\")","v":4}]
[null,"Λεωνίδας Γ",null,"υποδοχή","υποδοχή","υποδοχή","υποδοχή ","υποδοχή","υποδοχή","υποδοχή",null,null,{"$f":"IFERROR(COUNTIF(Τετάρτη[[#This Row],[7:00 πμ]:[3:00 μμ]],\"*\"),\"\")","v":7}]
[null,"Πέτρος Ν",null,"υποδοχή","υποδοχή","υποδοχή","υποδοχή ","υποδοχή","υποδοχή","υποδοχή",null,null,{"$f":"IFERROR(COUNTIF(Τετάρτη[[#This Row],[7:00 πμ]:[3:00 μμ]],\"*\"),\"\")","v":7}]
[null,"Δήμος Λ",{"$nulls":9},"Ασθένεια",{"$f":"IFERROR(COUNTIF(Τετάρτη[[#This Row],[7:00 πμ]:[3:00 μμ]],\"*\"),\"\")","v":0}]
[null,"Στέλλα Κ",{"$nulls":5},"ταμίας","ταμίας","ταμίας","ταμίας",null,{"$f":"IFERROR(COUNTIF(Τετάρτη[[#This Row],[7:00 πμ]:[3:00 μμ]],\"*\"),\"\")","v":4}]

{"sheet":"Πέμπτη","index":3,"n_rows":10,"n_cols":13,"rows_kept":10,"merged":[[1,1,2,1],[1,2,1,10],[1,11,1,12],[2,2,2,10],[2,11,2,12]]}
[null,{"$f":"Τίτλος_ΠΡΟΓΡΑΜΜΑΤΟΣ_ΒΑΡΔΙΑΣ","v":"ΠΡΟΓΡΑΜΜΑ ΒΑΡΔΙΑΣ"}]
[null,"ΠΕΜΠΤΗ","Εβδομάδα: ",{"$nulls":8},{"$f":"ΗΜΕΡΟΜΗΝΙΑ","v":"ΗΜΕΡΟΜΗΝΙΑ"}]
[null,null,"Όνομα τμήματος: ",{"$nulls":8},{"$f":"ΤΜΗΜΑ","v":"ΤΜΗΜΑ"}]
[null,"Όνομα υπαλλήλου","7:00 πμ","8:00 πμ","9:00 πμ","10:00 πμ","11:00 πμ","12:00 μμ","1:00 μμ","2:00 μμ","3:00 μμ","Ασθενής;","ΣΥΝΟΛΟ"]
[null,"Αντιγόνη Γ","προϊστάμενος","προϊστάμενος","προϊστάμενος","προϊστάμενος","προϊστάμενος","προϊστάμενος","προϊστάμενος","προϊστάμενος","προϊστάμενος",null,{"$f":"IFERROR(COUNTIF(Πέμπτη[[#This Row],[7:00 πμ]:[3:00 μμ]],\"*\"),\"\")","v":9}]
[null,"Αλέξανδρος Κ",null,"ταμίας","ταμίας","ταμίας","ταμίας",{"$nulls":5},{"$f":"IFERROR(COUNTIF(Πέμπτη[[#This Row],[7:00 πμ]:[3:00 μμ]],\"*\"),\"\")","v":4}]
[null,"Λεωνίδας Γ",null,"υποδοχή","υποδοχή","υποδοχή","υποδοχή ","υποδοχή","υποδοχή","υποδοχή",null,null,{"$f":"IFERROR(COUNTIF(Πέμπτη[[#This Row],[7:00 πμ]:[3:00 μμ]],\"*\"),\"\")","v":7}]
[null,"Πέτρος Ν",null,"υποδοχή","υποδοχή","υποδοχή","υποδοχή ","υποδοχή","υποδοχή","υποδοχή",null,null,{"$f":"IFERROR(COUNTIF(Πέμπτη[[#This Row],[7:00 πμ]:[3:00 μμ]],\"*\"),\"\")","v":7}]
[null,"Δήμος Λ",{"$nulls":9},"Ασθένεια",{"$f":"IFERROR(COUNTIF(Πέμπτη[[#This Row],[7:00 πμ]:[3:00 μμ]],\"*\"),\"\")","v":0}]
[null,"Στέλλα Κ",{"$nulls":5},"ταμίας","ταμίας","ταμίας","ταμίας",null,{"$f":"IFERROR(COUNTIF(Πέμπτη[[#This Row],[7:00 πμ]:[3:00 μμ]],\"*\"),\"\")","v":4}]

{"sheet":"Παρασκευή","index":4,"n_rows":10,"n_cols":13,"rows_kept":10,"merged":[[1,1,2,1],[1,2,1,10],[1,11,1,12],[2,2,2,10],[2,11,2,12]]}
[null,{"$f":"Τίτλος_ΠΡΟΓΡΑΜΜΑΤΟΣ_ΒΑΡΔΙΑΣ","v":"ΠΡΟΓΡΑΜΜΑ ΒΑΡΔΙΑΣ"}]
[null,"ΠΑΡΑΣΚΕΥΗ","Εβδομάδα: ",{"$nulls":8},{"$f":"ΗΜΕΡΟΜΗΝΙΑ","v":"ΗΜΕΡΟΜΗΝΙΑ"}]
[null,null,"Όνομα τμήματος: ",{"$nulls":8},{"$f":"ΤΜΗΜΑ","v":"ΤΜΗΜΑ"}]
[null,"Όνομα υπαλλήλου","7:00 πμ","8:00 πμ","9:00 πμ","10:00 πμ","11:00 πμ","12:00 μμ","1:00 μμ","2:00 μμ","3:00 μμ","Ασθενής;","ΣΥΝΟΛΟ"]
[null,"Αντιγόνη Γ","προϊστάμενος","προϊστάμενος","προϊστάμενος","προϊστάμενος","προϊστάμενος","προϊστάμενος","προϊστάμενος","προϊστάμενος","προϊστάμενος",null,{"$f":"IFERROR(COUNTIF(Παρασκευή[[#This Row],[7:00 πμ]:[3:00 μμ]],\"*\"),\"\")","v":9}]
[null,"Αλέξανδρος Κ",null,"ταμίας","ταμίας","ταμίας","ταμίας",{"$nulls":5},{"$f":"IFERROR(COUNTIF(Παρασκευή[[#This Row],[7:00 πμ]:[3:00 μμ]],\"*\"),\"\")","v":4}]
[null,"Λεωνίδας Γ",null,"υποδοχή","υποδοχή","υποδοχή","υποδοχή ","υποδοχή","υποδοχή","υποδοχή",null,null,{"$f":"IFERROR(COUNTIF(Παρασκευή[[#This Row],[7:00 πμ]:[3:00 μμ]],\"*\"),\"\")","v":7}]
[null,"Πέτρος Ν",null,"υποδοχή","υποδοχή","υποδοχή","υποδοχή ","υποδοχή","υποδοχή","υποδοχή",null,null,{"$f":"IFERROR(COUNTIF(Παρασκευή[[#This Row],[7:00 πμ]:[3:00 μμ]],\"*\"),\"\")","v":7}]
[null,"Δήμος Λ",{"$nulls":9},"Ασθένεια",{"$f":"IFERROR(COUNTIF(Παρασκευή[[#This Row],[7:00 πμ]:[3:00 μμ]],\"*\"),\"\")","v":0}]
[null,"Στέλλα Κ",{"$nulls":5},"ταμίας","ταμίας","ταμίας","ταμίας",null,{"$f":"IFERROR(COUNTIF(Παρασκευή[[#This Row],[7:00 πμ]:[3:00 μμ]],\"*\"),\"\")","v":4}]

{"sheet":"Σάββατο","index":5,"n_rows":10,"n_cols":13,"rows_kept":10,"merged":[[1,1,2,1],[1,2,1,10],[1,11,1,12],[2,2,2,10],[2,11,2,12]]}
[null,{"$f":"Τίτλος_ΠΡΟΓΡΑΜΜΑΤΟΣ_ΒΑΡΔΙΑΣ","v":"ΠΡΟΓΡΑΜΜΑ ΒΑΡΔΙΑΣ"}]
[null,"ΣΑΒΒΑΤΟ","Εβδομάδα: ",{"$nulls":8},{"$f":"ΗΜΕΡΟΜΗΝΙΑ","v":"ΗΜΕΡΟΜΗΝΙΑ"}]
[null,null,"Όνομα τμήματος: ",{"$nulls":8},{"$f":"ΤΜΗΜΑ","v":"ΤΜΗΜΑ"}]
[null,"Όνομα υπαλλήλου","7:00 πμ","8:00 πμ","9:00 πμ","10:00 πμ","11:00 πμ","12:00 μμ","1:00 μμ","2:00 μμ","3:00 μμ","Ασθενής;","ΣΥΝΟΛΟ"]
[null,"Αντιγόνη Γ","προϊστάμενος","προϊστάμενος","προϊστάμενος","προϊστάμενος","προϊστάμενος","προϊστάμενος","προϊστάμενος","προϊστάμενος","προϊστάμενος",null,{"$f":"IFERROR(COUNTIF(Σάββατο[[#This Row],[7:00 πμ]:[3:00 μμ]],\"*\"),\"\")","v":9}]
[null,"Αλέξανδρος Κ",null,"ταμίας","ταμίας","ταμίας","ταμίας",{"$nulls":5},{"$f":"IFERROR(COUNTIF(Σάββατο[[#This Row],[7:00 πμ]:[3:00 μμ]],\"*\"),\"\")","v":4}]
[null,"Λεωνίδας Γ",null,"υποδοχή","υποδοχή","υποδοχή","υποδοχή ","υποδοχή","υποδοχή","υποδοχή",null,null,{"$f":"IFERROR(COUNTIF(Σάββατο[[#This Row],[7:00 πμ]:[3:00 μμ]],\"*\"),\"\")","v":7}]
[null,"Πέτρος Ν",null,"υποδοχή","υποδοχή","υποδοχή","υποδοχή ","υποδοχή","υποδοχή","υποδοχή",null,null,{"$f":"IFERROR(COUNTIF(Σάββατο[[#This Row],[7:00 πμ]:[3:00 μμ]],\"*\"),\"\")","v":7}]
[null,"Δήμος Λ",{"$nulls":9},"Ασθένεια",{"$f":"IFERROR(COUNTIF(Σάββατο[[#This Row],[7:00 πμ]:[3:00 μμ]],\"*\"),\"\")","v":0}]
[null,"Στέλλα Κ",{"$nulls":5},"ταμίας","ταμίας","ταμίας","ταμίας",null,{"$f":"IFERROR(COUNTIF(Σάββατο[[#This Row],[7:00 πμ]:[3:00 μμ]],\"*\"),\"\")","v":4}]

{"sheet":"Κυριακή","index":6,"n_rows":10,"n_cols":13,"rows_kept":10,"merged":[[1,1,2,1],[1,2,1,10],[1,11,1,12],[2,2,2,10],[2,11,2,12]]}
[null,{"$f":"Τίτλος_ΠΡΟΓΡΑΜΜΑΤΟΣ_ΒΑΡΔΙΑΣ","v":"ΠΡΟΓΡΑΜΜΑ ΒΑΡΔΙΑΣ"}]
[null,"ΚΥΡΙΑΚΗ","Εβδομάδα: ",{"$nulls":8},{"$f":"ΗΜΕΡΟΜΗΝΙΑ","v":"ΗΜΕΡΟΜΗΝΙΑ"}]
[null,null,"Όνομα τμήματος: ",{"$nulls":8},{"$f":"ΤΜΗΜΑ","v":"ΤΜΗΜΑ"}]
[null,"Όνομα υπαλλήλου","7:00 πμ","8:00 πμ","9:00 πμ","10:00 πμ","11:00 πμ","12:00 μμ","1:00 μμ","2:00 μμ","3:00 μμ","Ασθενής;","ΣΥΝΟΛΟ"]
[null,"Αντιγόνη Γ","προϊστάμενος","προϊστάμενος","προϊστάμενος","προϊστάμενος","προϊστάμενος","προϊστάμενος","προϊστάμενος","προϊστάμενος","προϊστάμενος",null,{"$f":"IFERROR(COUNTIF(Κυριακή[[#This Row],[7:00 πμ]:[3:00 μμ]],\"*\"),\"\")","v":9}]
[null,"Αλέξανδρος Κ",null,"ταμίας","ταμίας","ταμίας","ταμίας",{"$nulls":5},{"$f":"IFERROR(COUNTIF(Κυριακή[[#This Row],[7:00 πμ]:[3:00 μμ]],\"*\"),\"\")","v":4}]
[null,"Λεωνίδας Γ",null,"υποδοχή","υποδοχή","υποδοχή","υποδοχή ","υποδοχή","υποδοχή","υποδοχή",null,null,{"$f":"IFERROR(COUNTIF(Κυριακή[[#This Row],[7:00 πμ]:[3:00 μμ]],\"*\"),\"\")","v":7}]
[null,"Πέτρος Ν",null,"υποδοχή","υποδοχή","υποδοχή","υποδοχή ","υποδοχή","υποδοχή","υποδοχή",null,null,{"$f":"IFERROR(COUNTIF(Κυριακή[[#This Row],[7:00 πμ]:[3:00 μμ]],\"*\"),\"\")","v":7}]
[null,"Δήμος Λ",{"$nulls":9},"Ασθένεια",{"$f":"IFERROR(COUNTIF(Κυριακή[[#This Row],[7:00 πμ]:[3:00 μμ]],\"*\"),\"\")","v":0}]
[null,"Στέλλα Κ",{"$nulls":5},"ταμίας","ταμίας","ταμίας","ταμίας",null,{"$f":"IFERROR(COUNTIF(Κυριακή[[#This Row],[7:00 πμ]:[3:00 μμ]],\"*\"),\"\")","v":4}]